bitfinex-derivatives/quotes_SOLF0:USTF0_20240925
["timestamp","ask_amount","ask_price","bid_price","bid_amount"]
[1727301221162,3.3348,149.94,149.91,3.3353]
[1727301221363,10.22,149.92,149.91,3.3353]
[1727301225979,3.3348,149.94,149.91,3.3353]
[1727301226272,10.22,149.92,149.91,3.3353]
[1727301242884,10.22,149.92,149.91,4.3353]
[1727301246895,3.335,149.93,149.91,4.3353]
[1727301247095,10.22,149.92,149.91,4.3353]
[1727301250791,10.22,149.92,149.91,3.3353]
[1727301252723,10.22,149.92,149.91,4.3353]
[1727301256404,10.22,149.92,149.91,1.0]
[1727301259702,10.22,149.92,149.91,3.3355]
[1727301261800,10.22,149.92,149.91,4.3355]
[1727301263609,10.22,149.92,149.91,1.0]
[1727301264892,13.5552,149.92,149.91,1.0]
[1727301267306,10.22,149.92,149.91,4.3355]
[1727301268301,10.22,149.92,149.91,1.0]
[1727301269112,10.22,149.92,149.9,3.3356]
[1727301271211,10.22,149.92,149.91,1.0]
[1727301274011,10.22,149.92,149.91,4.3355]
[1727301281309,3.3349,149.94,149.91,4.3355]
[1727301281611,13.5549,149.94,149.92,3.3352]
[1727301282018,10.22,149.94,149.92,3.3352]
[1727301289522,13.5548,149.94,149.92,3.3352]
[1727301293714,10.22,149.94,149.92,3.3352]
[1727301301738,10.22,149.93,149.92,3.3352]
[1727301303834,10.22,149.93,149.91,4.3353]
[1727301304430,13.555,149.93,149.91,4.3353]
[1727301307231,10.22,149.93,149.91,4.3353]
[1727301307833,13.555,149.93,149.91,4.3353]
[1727301317045,3.3352,149.92,149.91,1.0]
[1727301323437,10.22,149.93,149.91,1.0]
[1727301324247,3.3352,149.93,149.91,1.0]
[1727301324441,10.22,149.92,149.91,1.0]
[1727301324936,13.5552,149.92,149.91,1.0]
[1727301325737,16.86328249,149.92,149.91,1.0]
[1727301326846,16.86328249,149.92,149.89,3.3359]
[1727301327952,16.86328249,149.92,149.87,1.3766]
[1727301327953,3.30808249,149.92,149.9,3.3355]
[1727301328166,13.5551,149.93,149.9,3.3355]
[1727301328645,16.89822277,149.93,149.9,3.3355]
[1727301330549,16.89822277,149.93,149.92,1.0]
[1727301332375,6.67822277,149.93,149.92,1.0]
[1727301332837,13.555,149.94,149.92,1.0]
[1727301333252,16.92748882,149.94,149.92,1.0]
[1727301336846,16.92748882,149.94,149.91,3.3354]
[1727301338948,16.92748882,149.94,149.93,1.0]
[1727301347356,3.3351,149.93,149.9,3.3356]
[1727301347559,10.22,149.92,149.9,3.3356]
[1727301349367,13.5553,149.92,149.9,3.3356]
[1727301352062,13.5553,149.92,149.91,1.0]
[1727301357668,3.3356,149.91,149.88,3.336]
[1727301357868,10.22,149.89,149.88,3.336]
[1727301359071,10.22,149.89,149.87,4.7128]
[1727301364074,10.22,149.89,149.88,3.3361]
[1727301364269,10.22,149.89,149.87,1.3766]
[1727301365271,10.22,149.89,149.87,4.7128]
[1727301369672,10.22,149.89,149.87,3.3362]
[1727301370577,10.22,149.89,149.88,1.0]
[1727301371083,10.22,149.89,149.88,4.3361]
[1727301373395,3.3355,149.91,149.89,3.3359]
[1727301373578,10.22,149.9,149.89,3.3359]
[1727301374580,10.22,149.9,149.88,4.336]
[1727301375277,3.3355,149.91,149.88,4.336]
[1727301375479,10.22,149.89,149.88,4.336]
[1727301377584,10.22,149.89,149.88,3.336]
[1727301379680,10.22,149.89,149.88,4.336]
[1727301381985,10.22,149.89,149.88,1.0]
[1727301383985,10.22,149.89,149.88,4.3361]
[1727301386795,10.22,149.89,149.88,3.3361]
[1727301388789,10.22,149.89,149.88,4.3361]
[1727301396595,10.22,149.89,149.88,3.3361]
[1727301398601,10.22,149.89,149.88,4.3361]
[1727301402496,13.5559,149.89,149.88,1.0]
[1727301406012,13.5559,149.89,149.86,3.3364]
[1727301406203,10.22,149.88,149.86,3.3364]
[1727301406998,10.22,149.88,149.83,1.4071]
[1727301406999,10.22,149.87,149.83,1.4071]
[1727301407198,10.22,149.85,149.83,1.4071]
[1727301407811,10.22,149.84,149.82,134.852303]
[1727301408109,13.557,149.84,149.82,131.514903]
[1727301408709,10.22,149.84,149.82,134.852303]
[1727301408912,10.22,149.84,149.82,131.514903]
[1727301409206,13.5572,149.84,149.82,131.514903]
[1727301409412,10.22,149.84,149.82,131.514903]
[1727301410235,3.3375,149.82,149.81,3.12947489]
[1727301410420,13.5575,149.82,149.81,3.12947489]
[1727301411635,3.3375,149.82,149.81,3.12947489]
[1727301411817,13.5575,149.82,149.81,3.12947489]
[1727301412418,3.3379,149.8,149.79,0.57368074]
[1727301412619,13.5579,149.8,149.79,0.57368074]
[1727301412923,3.41114005,149.82,149.77,4.67632592]
[1727301412924,10.22,149.78,149.77,4.67632592]
[1727301413516,13.5583,149.78,149.77,4.67632592]
[1727301413825,13.5583,149.78,149.77,0.14902592]
[1727301414030,10.22,149.78,149.75,4.58001816]
[1727301414224,10.22,149.76,149.75,4.58001816]
[1727301414726,13.49355907,149.76,149.75,4.58001816]
[1727301415028,16.83235907,149.76,149.75,4.58001816]
[1727301415220,16.83235907,149.76,149.75,4.43461816]
[1727301415417,3.3392,149.74,149.71,5.755435]
[1727301415619,13.5592,149.74,149.71,5.755435]
[1727301415822,3.3392,149.74,149.71,5.755435]
[1727301416031,13.5592,149.74,149.71,5.755435]
[1727301419431,3.3392,149.74,149.73,2.23331336]
[1727301419729,13.5592,149.74,149.73,2.23331336]
[1727301420229,16.83840342,149.74,149.71,5.755435]
[1727301420423,13.5597,149.72,149.71,5.755435]
[1727301421330,13.51290296,149.72,149.65,6.64798603]
[1727301421533,10.22,149.68,149.65,6.64798603]
[1727301422530,3.29290296,149.72,149.65,6.64798603]
[1727301422733,10.22,149.69,149.65,6.64798603]
[1727301423875,10.22,149.69,149.66,3.3409]
[1727301424825,13.5604,149.69,149.66,3.3409]
[1727301425337,10.22,149.69,149.66,3.3409]
[1727301425937,10.22,149.68,149.66,3.3409]
[1727301426532,10.22,149.68,149.67,10.44752178]
[1727301426835,6.69904751,149.7,149.67,10.44752178]
[1727301426836,10.22,149.69,149.67,10.44752178]
[1727301427039,10.22,149.68,149.67,7.10672178]
[1727301427263,10.22,149.68,149.67,10.44752178]
[1727301427541,10.22,149.68,149.67,7.10672178]
[1727301428140,10.22,149.69,149.67,7.10672178]
[1727301428941,10.22,149.69,149.67,10.44752178]
[1727301430240,13.5604,149.69,149.67,7.10672178]
[1727301430450,10.22,149.68,149.67,7.10672178]
[1727301433850,13.5602,149.7,149.67,7.10672178]
[1727301434047,13.5602,149.7,149.67,10.44752178]
[1727301434241,10.22,149.68,149.67,7.10672178]
[1727301436740,10.22,149.68,149.67,10.44752178]
[1727301439241,10.22,149.68,149.67,7.10672178]
[1727301441349,13.5606,149.68,149.67,7.10672178]
[1727301441653,10.22,149.68,149.65,6.64798603]
[1727301441849,13.561,149.66,149.65,6.64798603]
[1727301442656,16.93578272,149.66,149.65,6.64798603]
[1727301444258,20.03,149.74,149.61,9.67816289]
[1727301444448,10.22,149.62,149.61,9.67816289]
[1727301444649,13.6329123,149.62,149.61,9.67816289]
[1727301445159,10.22,149.62,149.61,9.67816289]
[1727301446762,3.32396994,149.65,149.61,9.67816289]
[1727301446959,10.22,149.63,149.61,9.67816289]
[1727301447362,10.22,149.63,149.61,13.02026289]
[1727301447660,10.22,149.62,149.61,13.02026289]
[1727301447871,13.5619,149.62,149.61,9.67816289]
[1727301454271,10.22,149.62,149.61,9.67816289]
[1727301455070,10.22,149.62,149.61,13.02026289]
[1727301458081,10.22,149.62,149.61,9.67816289]
[1727301458261,3.26311464,149.66,149.65,1.0]
[1727301458465,10.22,149.66,149.61,9.67816289]
[1727301458672,10.22,149.62,149.61,13.02016289]
[1727301461887,10.22,149.63,149.62,3.3417]
[1727301462168,10.22,149.63,149.61,9.67816289]
[1727301462773,10.22,149.63,149.62,3.3419]
[1727301465078,10.22,149.63,149.62,4.3419]
[1727301470184,8.0997,149.63,149.62,4.3419]
[1727301472076,8.0997,149.63,149.62,3.3419]
[1727301473271,10.22,149.65,149.61,9.67816289]
[1727301473883,10.22,149.65,149.64,3.3415]
[1727301478491,10.22,149.65,149.63,3.3416]
[1727301478786,10.22,149.64,149.62,1.0]
[1727301478990,10.22,149.64,149.62,3.3417]
[1727301479885,10.22,149.64,149.63,3.3417]
[1727301483293,10.22,149.64,149.62,1.0]
[1727301484792,10.22,149.64,149.62,4.3418]
[1727301485789,10.22,149.64,149.62,3.3418]
[1727301487597,10.22,149.64,149.62,4.3418]
[1727301493407,3.35584504,149.65,149.63,3.3416]
[1727301493605,1.2723,149.73,149.61,9.67816289]
[1727301493606,10.22,149.64,149.61,9.67816289]
[1727301494106,10.22,149.64,149.63,3.3417]
[1727301495405,10.22,149.64,149.63,4.3417]
[1727301500706,10.22,149.64,149.63,3.3417]
[1727301501309,6.75581249,149.66,149.63,3.3417]
[1727301501507,10.22,149.64,149.63,3.3417]
[1727301502615,10.22,149.64,149.63,4.3417]
[1727301504023,10.22,149.65,149.64,3.3414]
[1727301504823,3.3407,149.68,149.65,3.3412]
[1727301505022,10.22,149.66,149.65,3.3412]
[1727301506918,10.22,149.66,149.64,3.3414]
[1727301508219,1.2723,149.73,149.63,1.2735]
[1727301508220,3.3404,149.69,149.63,1.2735]
[1727301508411,1.2723,149.73,149.63,1.2735]
[1727301508617,10.22,149.68,149.63,1.2735]
[1727301508819,10.22,149.68,149.67,3.3408]
[1727301509213,10.22,149.68,149.63,11.4935]
[1727301510328,10.22,149.68,149.63,1.2735]
[1727301510726,10.22,149.68,149.63,2.2735]
[1727301511830,10.22,149.68,149.67,3.3408]
[1727301514632,10.22,149.68,149.63,2.2735]
[1727301514827,10.22,149.65,149.63,2.2735]
[1727301515136,3.3405,149.69,149.63,2.2735]
[1727301515432,10.22,149.65,149.63,2.2735]
[1727301515834,10.22,149.65,149.64,3.3413]
[1727301517339,10.22,149.65,149.63,1.2735]
[1727301517934,10.22,149.65,149.63,2.2735]
[1727301518628,10.22,149.65,149.64,3.3415]
[1727301518839,10.22,149.65,149.63,2.2735]
[1727301519131,10.22,149.64,149.63,2.2735]
[1727301519335,10.22,149.64,149.63,5.6151]
[1727301523843,10.22,149.64,149.63,4.6151]
[1727301524143,10.22,149.64,149.61,9.67816289]
[1727301525642,10.22,149.62,149.61,9.67816289]
[1727301525940,10.22,149.62,149.61,4.55986289]
[1727301526143,10.22,149.62,149.58,7.62690055]
[1727301526345,10.22,149.59,149.58,7.62690055]
[1727301526741,13.5626,149.59,149.58,7.62690055]
[1727301527144,16.92134289,149.59,149.58,7.62690055]
[1727301528346,3.343,149.57,149.53,3.3439]
[1727301528652,13.563,149.57,149.53,3.3439]
[1727301529240,13.563,149.57,149.52,14.6363654]
[1727301529452,3.3434,149.56,149.52,14.6363654]
[1727301529764,10.22,149.55,149.52,14.6363654]
[1727301530055,10.22,149.55,149.52,11.2922654]
[1727301530748,10.22,149.55,149.53,3.3439]
[1727301530949,13.62404175,149.55,149.53,3.3439]
[1727301531154,13.62404175,149.55,149.52,11.2922654]
[1727301531649,13.62404175,149.55,149.52,14.6362654]
[1727301532247,13.62404175,149.55,149.52,11.2922654]
[1727301532550,10.22,149.53,149.52,11.2922654]
[1727301533256,6.74764175,149.55,149.52,11.2922654]
[1727301533549,10.22,149.53,149.52,11.2922654]
[1727301534749,10.22,149.53,149.52,14.6363654]
[1727301535046,10.22,149.53,149.52,11.2922654]
[1727301537748,10.22,149.53,149.52,14.6364654]
[1727301540343,3.40404175,149.55,149.52,14.6364654]
[1727301540548,10.22,149.55,149.52,11.2922654]
[1727301540851,80.28,149.68,149.62,1.0]
[1727301541056,3.3424,149.6,149.57,3.343]
[1727301541258,3.41228422,149.61,149.53,10.22]
[1727301541560,10.22,149.6,149.54,10.22]
[1727301541758,10.22,149.6,149.58,3.3426]
[1727301542954,10.22,149.59,149.58,3.3426]
[1727301546360,80.28,149.68,149.6,3.3423]
[1727301546559,10.22,149.61,149.6,3.3423]
[1727301546856,3.30667826,149.7,149.6,3.3423]
[1727301547054,10.22,149.61,149.6,3.3423]
[1727301547456,3.3028923,149.64,149.62,3.3418]
[1727301547759,10.22,149.63,149.62,1.0]
[1727301548551,13.59301852,149.63,149.62,1.0]
[1727301548751,10.22,149.63,149.62,1.0]
[1727301548952,3.3416,149.64,149.62,1.0]
[1727301549162,10.22,149.63,149.62,4.3419]
[1727301550662,3.3413,149.65,149.62,4.3419]
[1727301550858,6.64954946,149.65,149.62,4.3419]
[1727301551057,10.22,149.63,149.62,4.3419]
[1727301552854,10.22,149.63,149.62,3.3419]
[1727301553155,3.3408,149.68,149.58,10.22]
[1727301553361,10.22,149.64,149.58,10.22]
[1727301553959,10.22,149.64,149.63,3.3417]
[1727301555457,10.22,149.66,149.61,10.22]
[1727301555655,10.22,149.66,149.62,2.7176]
[1727301556561,3.38314944,149.74,149.62,2.7176]
[1727301556860,26.6901,149.88,149.65,10.22]
[1727301556861,10.22,149.71,149.65,10.22]
[1727301557265,3.28094064,149.73,149.69,3.3402]
[1727301557266,10.22,149.7,149.69,3.3402]
[1727301559161,10.22,149.7,149.68,3.3404]
[1727301560966,3.28094064,149.73,149.66,3.3409]
[1727301561166,10.22,149.67,149.66,3.3409]
[1727301561669,10.22,149.67,149.65,3.3412]
[1727301562766,10.22,149.67,149.64,3.3414]
[1727301562963,10.22,149.65,149.64,3.3414]
[1727301568267,10.22,149.65,149.64,4.3414]
[1727301570465,10.22,149.67,149.65,3.3412]
[1727301570671,3.34692513,149.69,149.64,11.22]
[1727301570974,10.22,149.71,149.64,1.0]
[1727301571275,10.22,149.68,149.64,11.22]
[1727301572275,10.22,149.68,149.65,3.3412]
[1727301572474,10.22,149.68,149.64,11.22]
[1727301572675,10.22,149.68,149.64,10.22]
[1727301572875,10.22,149.68,149.66,3.341]
[1727301574372,3.38326153,149.71,149.62,4.0123]
[1727301574373,10.22,149.67,149.62,4.0123]
[1727301574674,10.22,149.66,149.65,1.0]
[1727301574870,3.341,149.67,149.65,1.0]
[1727301575071,6.6772,149.78,149.65,1.0]
[1727301575273,6.6772,149.78,149.65,11.22]
[1727301575474,10.22,149.7,149.67,3.3407]
[1727301576082,10.22,149.69,149.67,3.3407]
[1727301580280,10.22,149.69,149.66,3.341]
[1727301580476,10.22,149.68,149.62,14.2323]
[1727301580979,10.22,149.68,149.65,3.3411]
[1727301586289,13.5605,149.69,149.65,3.3411]
[1727301587785,3.3405,149.69,149.65,3.3411]
[1727301587979,13.5605,149.69,149.65,3.3411]
[1727301588782,13.5605,149.69,149.68,1.0]
[1727301592300,13.5605,149.69,149.66,3.341]
[1727301593100,10.22,149.68,149.66,3.341]
[1727301593593,10.22,149.67,149.65,3.3412]
[1727301597504,10.22,149.67,149.64,3.3414]
[1727301598493,10.22,149.67,149.63,3.3416]
[1727301598890,13.5609,149.67,149.63,3.3416]
[1727301599595,13.5609,149.67,149.64,3.3415]
[1727301600294,10.22,149.65,149.62,4.0123]
[1727301600495,3.39471925,149.72,149.62,1.3995]
[1727301600695,6.6785,149.75,149.62,1.3995]
[1727301600696,10.22,149.65,149.62,1.3995]
[1727301600904,3.28864669,149.65,149.63,3.3415]
[1727301601092,23.71349803,149.78,149.62,11.6195]
[1727301601400,10.22,149.69,149.63,1.4118]
[1727301601604,13.55678791,149.69,149.63,1.4118]
[1727301601805,16.89718791,149.69,149.67,1.0]
[1727301602299,16.89718791,149.69,149.67,4.3408]
[1727301602499,13.55678791,149.69,149.67,4.3408]
[1727301605508,13.55678791,149.69,149.67,3.3408]
[1727301607595,16.89718791,149.69,149.67,3.3408]
[1727301609308,6.67718791,149.69,149.67,3.3408]
[1727301609500,10.22,149.68,149.67,3.3408]
[1727301611110,6.67718791,149.69,149.67,3.3408]
[1727301611312,16.89718791,149.69,149.66,3.3409]
[1727301614118,3.3407,149.68,149.66,3.3409]
[1727301614317,3.3407,149.68,149.65,3.3412]
[1727301614617,10.22,149.67,149.65,3.3412]
[1727301614808,13.5609,149.67,149.64,3.3413]
[1727301615512,3.3407,149.68,149.65,3.3412]
[1727301615718,13.5607,149.68,149.65,3.3412]
[1727301615919,3.37389676,149.69,149.63,1.4118]
[1727301616216,13.5602,149.7,149.67,3.3408]
[1727301616414,3.32274672,149.69,149.67,3.3408]
[1727301620521,3.32274672,149.69,149.68,1.0]
[1727301620915,13.5602,149.7,149.68,1.0]
[1727301621527,16.8699051,149.7,149.68,1.0]
[1727301623018,3.3404,149.69,149.68,1.0]
[1727301626226,3.3404,149.69,149.67,3.3408]
[1727301628228,3.3404,149.69,149.68,1.0]
[1727301630420,3.37657127,149.8,149.69,3.3404]
[1727301630623,6.6754,149.81,149.68,11.22]
[1727301630624,10.22,149.73,149.68,12.5271]
[1727301630818,3.37991805,149.74,149.69,10.22]
[1727301631034,13.5592,149.75,149.71,3.3398]
[1727301631225,3.27994818,149.74,149.71,3.3398]
[1727301631424,13.5592,149.75,149.71,3.3398]
[1727301631625,6.6754,149.81,149.71,3.3398]
[1727301631626,13.5593,149.74,149.71,3.3398]
[1727301632725,6.6735,149.86,149.72,3.3396]
[1727301633024,10.22,149.76,149.72,3.3396]
[1727301633229,13.60157057,149.76,149.72,3.3396]
[1727301633426,10.22,149.76,149.72,3.3396]
[1727301633926,3.339,149.75,149.72,3.3396]
[1727301639838,3.3393,149.74,149.71,3.3398]
[1727301640223,3.3393,149.74,149.7,10.22]
[1727301640423,3.3393,149.74,149.7,13.56]
[1727301640629,10.22,149.74,149.69,11.6146]
[1727301640833,10.22,149.72,149.69,1.3946]
[1727301641832,3.34,149.71,149.69,1.3946]
[1727301642429,10.22,149.72,149.69,1.3946]
[1727301643337,3.3401,149.7,149.68,1.0]
[1727301643544,3.35739107,149.73,149.68,1.0]
[1727301643545,10.22,149.71,149.68,1.0]
[1727301643736,10.22,149.72,149.68,4.3406]
[1727301644945,10.22,149.72,149.68,1.0]
[1727301645540,3.41954022,149.74,149.68,11.22]
[1727301645743,23.85206362,149.79,149.68,11.22]
[1727301645938,10.22,149.74,149.68,11.22]
[1727301646143,10.22,149.74,149.68,10.22]
[1727301646144,3.3396,149.73,149.68,10.22]
[1727301646342,3.3396,149.73,149.7,10.22]
[1727301646841,3.3397,149.72,149.66,3.9801]
[1727301647038,3.3397,149.72,149.68,10.22]
[1727301647833,3.3397,149.72,149.69,3.3402]
[1727301654847,3.3397,149.72,149.68,13.5604]
[1727301655046,3.3397,149.72,149.68,3.3404]
[1727301655047,3.3399,149.71,149.68,3.3404]
[1727301655247,3.3399,149.71,149.66,14.2001]
[1727301655541,3.3399,149.71,149.67,3.3406]
[1727301657151,3.3399,149.71,149.68,3.3406]
[1727301660851,3.3395,149.73,149.7,3.34]
[1727301661061,3.3395,149.73,149.7,13.56]
[1727301661258,3.3395,149.73,149.72,1.0]
[1727301661557,3.3393,149.74,149.72,1.0]
[1727301665557,13.5593,149.74,149.72,1.0]
[1727301665853,13.5593,149.74,149.71,3.3398]
[1727301666661,3.3395,149.73,149.71,3.3398]
[1727301667755,3.3395,149.73,149.72,1.0]
[1727301672067,3.3395,149.73,149.71,3.3398]
[1727301674063,3.3395,149.73,149.72,1.0]
[1727301674864,13.5595,149.73,149.72,1.0]
[1727301675061,3.3395,149.73,149.72,1.0]
[1727301675267,13.5595,149.73,149.72,1.0]
[1727301675769,3.26626697,149.76,149.72,1.0]
[1727301675966,10.22,149.76,149.72,1.0]
[1727301676160,13.50498863,149.76,149.72,1.0]
[1727301676466,3.3394,149.74,149.72,1.0]
[1727301677164,10.22,149.75,149.72,4.3395]
[1727301677569,3.3393,149.74,149.72,1.0]
[1727301678367,3.3393,149.74,149.71,3.3398]
[1727301680173,3.3393,149.74,149.72,1.0]
[1727301684377,3.3395,149.73,149.72,1.0]
[1727301685178,3.3395,149.73,149.7,3.3401]
[1727301687575,3.3397,149.72,149.69,3.3402]
[1727301689284,3.269732,149.75,149.66,2.6662]
[1727301689481,10.22,149.73,149.67,10.22]
[1727301689684,3.39595424,149.72,149.67,10.22]
[1727301689985,3.3398,149.72,149.68,3.3404]
[1727301690285,6.73541996,149.72,149.68,3.3404]
[1727301690582,6.73541996,149.72,149.67,10.22]
[1727301690583,3.3398,149.72,149.67,10.22]
[1727301690785,3.27193622,149.73,149.67,10.22]
[1727301691182,3.27193622,149.73,149.68,3.3406]
[1727301691383,3.34,149.71,149.68,3.3406]
[1727301693786,13.5598,149.72,149.68,3.3406]
[1727301699095,13.5598,149.72,149.68,13.5606]
[1727301700898,13.5598,149.72,149.71,1.0]
[1727301705310,13.5598,149.72,149.68,3.3406]
[1727301706903,10.22,149.71,149.66,2.6662]
[1727301707099,10.22,149.69,149.66,2.6662]
[1727301707303,3.3407,149.68,149.66,2.6662]
[1727301707803,13.61560219,149.69,149.64,1.2744]
[1727301708004,10.22,149.68,149.64,1.2744]
[1727301708194,3.3409,149.67,149.63,69.183829]
[1727301708394,10.22,149.68,149.63,65.842229]
[1727301709103,13.6185344,149.68,149.63,65.842229]
[1727301709604,10.22,149.66,149.63,65.842229]
[1727301710804,3.3413,149.65,149.61,5.8894]
[1727301711698,10.22,149.62,149.56,1.3591]
[1727301711898,10.22,149.6,149.56,11.5791]
[1727301712106,10.22,149.62,149.56,11.5791]
[1727301712309,3.3422,149.61,149.56,14.9223]
[1727301712700,3.3422,149.61,149.56,4.7023]
[1727301713006,3.3422,149.61,149.56,14.9223]
[1727301713897,13.5624,149.6,149.55,3.3434]
[1727301714102,10.22,149.58,149.53,2.5832]
[1727301714401,10.22,149.57,149.53,2.5832]
[1727301714602,10.22,149.57,149.52,21.5122654]
[1727301714603,10.22,149.56,149.52,11.2922654]
[1727301714800,10.22,149.55,149.52,11.2922654]
[1727301714990,13.49736602,149.55,149.52,11.2922654]
[1727301715394,3.27736602,149.55,149.52,11.2922654]
[1727301715605,10.22,149.54,149.52,11.2922654]
[1727301716903,13.5639,149.54,149.52,11.2922654]
[1727301717297,10.22,149.54,149.52,11.2922654]
[1727301717599,3.37437269,149.56,149.52,14.6363654]
[1727301717794,23.69910428,149.68,149.52,11.2922654]
[1727301717995,10.22,149.54,149.52,11.2922654]
[1727301718198,23.69910428,149.67,149.52,11.2922654]
[1727301718400,10.22,149.54,149.52,11.2922654]
[1727301718698,13.50839076,149.54,149.52,11.2922654]
[1727301718899,16.85209076,149.54,149.52,11.2922654]
[1727301719100,3.28839076,149.54,149.52,11.2922654]
[1727301719300,10.22,149.53,149.5,11.62650425]
[1727301719496,10.22,149.51,149.5,11.62650425]
[1727301719696,16.92528062,149.51,149.5,11.62650425]
[1727301719999,13.5644,149.51,149.5,8.32650425]
[1727301720307,3.3448,149.49,149.48,11.19639438]
[1727301720494,13.5648,149.49,149.48,11.19639438]
[1727301720696,10.22,149.49,149.48,11.19639438]
[1727301722713,3.3448,149.49,149.48,11.19639438]
[1727301723007,10.22,149.49,149.44,10.96465686]
[1727301723207,10.22,149.45,149.44,10.96465686]
[1727301724002,13.62095065,149.45,149.44,10.96465686]
[1727301724207,13.5657,149.45,149.44,7.96465686]
[1727301724607,16.88263111,149.45,149.44,7.96465686]
[1727301724797,3.3462,149.43,149.42,16.47521159]
[1727301725210,13.5662,149.43,149.42,16.47521159]
[1727301725809,6.6857,149.58,149.42,16.47521159]
[1727301726111,10.22,149.46,149.42,16.47521159]
[1727301726914,6.6857,149.58,149.42,26.69521159]
[1727301727211,10.22,149.48,149.44,10.22]
[1727301728013,10.22,149.48,149.45,3.3457]
[1727301730318,10.22,149.48,149.46,3.3455]
[1727301730509,3.3444,149.51,149.44,10.22]
[1727301730811,10.22,149.55,149.5,10.22]
[1727301731012,10.22,149.55,149.51,2.6759]
[1727301731611,10.22,149.55,149.51,6.0202]
[1727301731612,13.5635,149.55,149.51,6.0202]
[1727301731811,20.07,149.68,149.51,12.8959]
[1727301732013,10.22,149.57,149.52,10.22]
[1727301732316,6.66261185,149.58,149.54,3.3437]
[1727301732717,3.343,149.58,149.54,3.3437]
[1727301733913,3.343,149.58,149.55,3.3434]
[1727301734613,19.4126,149.59,149.55,3.3434]
[1727301735714,16.07,149.61,149.51,18.7459]
[1727301735917,16.07,149.64,149.53,16.07]
[1727301736214,16.07,149.64,149.51,2.6759]
[1727301736215,19.4111,149.66,149.55,16.07]
[1727301736616,16.07,149.62,149.51,2.6759]
[1727301736803,3.42645877,149.63,149.51,2.6759]
[1727301737006,16.07,149.6,149.51,2.6759]
[1727301737207,3.26318254,149.67,149.56,16.07]
[1727301737414,80.28,149.74,149.58,16.07]
[1727301737721,230.0,149.81,149.64,3.3413]
[1727301737722,3.3405,149.69,149.64,3.3413]
[1727301737911,16.07,149.7,149.6,16.07]
[1727301738105,19.47499411,149.7,149.6,16.07]
[1727301739822,3.3407,149.68,149.63,3.3417]
[1727301740016,16.07,149.68,149.59,2.6763]
[1727301740215,16.07,149.64,149.59,2.6763]
[1727301740417,19.4115,149.64,149.59,2.6763]
[1727301740622,16.07,149.64,149.59,2.6763]
[1727301740809,16.07,149.62,149.59,2.6763]
[1727301741012,19.412,149.62,149.59,2.6763]
[1727301741215,16.07,149.62,149.59,2.6763]
[1727301741515,16.07,149.64,149.59,6.0187]
[1727301742524,16.07,149.66,149.59,2.6763]
[1727301743115,19.4112,149.66,149.61,3.3421]
[1727301743630,19.4112,149.66,149.62,3.3419]
[1727301743822,16.07,149.68,149.59,2.6763]
[1727301744416,19.4106,149.68,149.63,3.3415]
[1727301745310,16.07,149.68,149.59,2.6763]
[1727301745511,16.07,149.66,149.59,2.6763]
[1727301746818,3.3416,149.64,149.6,3.3423]